[Event "Titled Tuesday Blitz August 09 Late 2022"]
[White "Bernal Moro, Luis Javier"]
[Black "Kamsky, Gata"]
[WhiteFideId "2200236"]
[BlackFideId "2000024"]
[WhiteElo "2376"]
[BlackElo "2666"]
[Result "0-1"]
[Round "01"]
[TimeControl "180+1"]
[Date "2022.08.09"]
[WhiteClock "0:00:02"]
[BlackClock "0:00:12"]

1. c4 {[%clk 0:02:59]}  e5 {[%clk 0:02:59]} 2. Nc3 {[%clk 0:02:59]}  Nc6 {[%clk 0:02:58]} 3. Nf3 {[%clk 0:03:00]}  f5 {[%clk 0:02:55]} 4. g3 {[%clk 0:02:59]}  Nf6 {[%clk 0:02:54]} 5. d4 {[%clk 0:02:59]}  e4 {[%clk 0:02:54]} 6. Nh4 {[%clk 0:02:59]}  g6 {[%clk 0:02:52]} 7. Bg5 {[%clk 0:02:56]}  Bg7 {[%clk 0:02:51]} 8. e3 {[%clk 0:02:56]}  O-O {[%clk 0:02:42]} 9. Ng2 {[%clk 0:02:52]}  d6 {[%clk 0:02:25]} 10. Nf4 {[%clk 0:02:51]}  h6 {[%clk 0:02:24]} 11. Bxf6 {[%clk 0:02:46]}  Qxf6 {[%clk 0:02:22]} 12. h4 {[%clk 0:02:38]}  Ne7 {[%clk 0:02:17]} 13. Qb3 {[%clk 0:02:34]}  c6 {[%clk 0:02:15]} 14. O-O-O {[%clk 0:02:31]}  a6 {[%clk 0:02:12]} 15. Be2 {[%clk 0:02:20]}  Kh8 {[%clk 0:02:07]} 16. Qa3 {[%clk 0:02:09]}  Bd7 {[%clk 0:02:02]} 17. f3 {[%clk 0:02:00]}  exf3 {[%clk 0:01:57]} 18. Bxf3 {[%clk 0:02:01]}  b5 {[%clk 0:01:55]} 19. c5 {[%clk 0:01:46]}  d5 {[%clk 0:01:48]} 20. Nce2 {[%clk 0:01:42]}  a5 {[%clk 0:01:46]} 21. Qd3 {[%clk 0:01:40]}  Qf7 {[%clk 0:01:22]} 22. Rdg1 {[%clk 0:01:37]}  Qe8 {[%clk 0:01:15]} 23. g4 {[%clk 0:01:32]}  a4 {[%clk 0:00:59]} 24. Qd2 {[%clk 0:01:00]}  a3 {[%clk 0:00:52]} 25. b3 {[%clk 0:00:59]}  Ra7 {[%clk 0:00:42]} 26. gxf5 {[%clk 0:00:56]}  Bxf5 {[%clk 0:00:41]} 27. Ng3 {[%clk 0:00:56]}  Bc8 {[%clk 0:00:40]} 28. Rh2 {[%clk 0:00:44]}  Nf5 {[%clk 0:00:33]} 29. Nxf5 {[%clk 0:00:41]}  Bxf5 {[%clk 0:00:33]} 30. Be2 {[%clk 0:00:34]}  Re7 {[%clk 0:00:32]} 31. Rg3 {[%clk 0:00:33]}  Be4 {[%clk 0:00:30]} 32. Bd3 {[%clk 0:00:32]}  Rxf4 {[%clk 0:00:24]} 33. exf4 {[%clk 0:00:30]}  Bxd4 {[%clk 0:00:25]} 34. Re2 {[%clk 0:00:18]}  Bf6 {[%clk 0:00:20]} 35. Kd1 {[%clk 0:00:16]}  h5 {[%clk 0:00:17]} 36. Qc2 {[%clk 0:00:11]}  Bxh4 {[%clk 0:00:16]} 37. Rh3 {[%clk 0:00:05]}  Bf6 {[%clk 0:00:16]} 38. Bxe4 {[%clk 0:00:05]}  dxe4 {[%clk 0:00:13]} 39. f5 {[%clk 0:00:05]}  Qd7+ {[%clk 0:00:13]} 40. Qd2 {[%clk 0:00:03]}  Qxf5 {[%clk 0:00:13]} 41. Qh6+ {[%clk 0:00:02]}  Kg8 {[%clk 0:00:14]} 42. Rf2 {[%clk 0:00:03]}  Rd7+ {[%clk 0:00:13]} 43. Ke1 {[%clk 0:00:02]}  Qxh3 {[%clk 0:00:12]} 0-1


[Site "https://www.chess.com"]

[Event "Titled Tuesday Blitz August 09 Late 2022"]
[White "Deviprasath, Sharvesh"]
[Black "Pakleza, Zbigniew"]
[WhiteFideId "30938228"]
[BlackFideId "1119290"]
[WhiteElo "2102"]
[BlackElo "2411"]
[Result "0-1"]
[Round "01"]
[TimeControl "180+1"]
[Date "2022.08.09"]
[WhiteClock "0:00:09"]
[BlackClock "0:01:04"]

1. Nf3 {[%clk 0:02:44]}  d5 {[%clk 0:02:59]} 2. e3 {[%clk 0:02:33]}  Nf6 {[%clk 0:02:59]} 3. c4 {[%clk 0:02:32]}  c6 {[%clk 0:02:59]} 4. Nc3 {[%clk 0:02:32]}  Bg4 {[%clk 0:02:55]} 5. cxd5 {[%clk 0:02:31]}  Bxf3 {[%clk 0:02:55]} 6. gxf3 {[%clk 0:02:29]}  cxd5 {[%clk 0:02:52]} 7. Qb3 {[%clk 0:02:22]}  Qd7 {[%clk 0:02:49]} 8. d4 {[%clk 0:02:19]}  Nc6 {[%clk 0:02:47]} 9. Bd3 {[%clk 0:02:14]}  e6 {[%clk 0:02:47]} 10. Bd2 {[%clk 0:02:14]}  Bd6 {[%clk 0:02:38]} 11. O-O-O {[%clk 0:02:10]}  O-O-O {[%clk 0:02:31]} 12. Kb1 {[%clk 0:02:07]}  Kb8 {[%clk 0:02:31]} 13. Nb5 {[%clk 0:01:59]}  Rc8 {[%clk 0:02:26]} 14. Nxd6 {[%clk 0:01:57]}  Qxd6 {[%clk 0:02:27]} 15. Rhg1 {[%clk 0:01:53]}  g6 {[%clk 0:02:24]} 16. f4 {[%clk 0:01:39]}  Ne4 {[%clk 0:02:14]} 17. Bxe4 {[%clk 0:01:38]}  dxe4 {[%clk 0:02:15]} 18. Bc3 {[%clk 0:01:38]}  Qd5 {[%clk 0:02:12]} 19. Qxd5 {[%clk 0:01:36]}  exd5 {[%clk 0:02:13]} 20. Rg5 {[%clk 0:01:31]}  Rcd8 {[%clk 0:01:49]} 21. h4 {[%clk 0:01:24]}  Ne7 {[%clk 0:01:39]} 22. h5 {[%clk 0:01:04]}  Nf5 {[%clk 0:01:37]} 23. Rh1 {[%clk 0:00:59]}  Kc7 {[%clk 0:01:30]} 24. Rgg1 {[%clk 0:00:54]}  Kd6 {[%clk 0:01:27]} 25. hxg6 {[%clk 0:00:49]}  hxg6 {[%clk 0:01:20]} 26. Bb4+ {[%clk 0:00:49]}  Ke6 {[%clk 0:01:20]} 27. b3 {[%clk 0:00:18]}  Rc8 {[%clk 0:01:13]} 28. Rc1 {[%clk 0:00:17]}  Rxc1+ {[%clk 0:01:12]} 29. Rxc1 {[%clk 0:00:16]}  Rh2 {[%clk 0:01:12]} 30. Be1 {[%clk 0:00:14]}  Nh4 {[%clk 0:01:05]} 31. Rc7 {[%clk 0:00:09]}  Rh1 {[%clk 0:01:04]} 0-1


[Site "https://www.chess.com"]

[Event "Titled Tuesday Blitz August 09 Late 2022"]
[White "Esipenko, Andrey"]
[Black "Roberson, Peter T"]
[WhiteFideId "24175439"]
[BlackFideId "412384"]
[WhiteElo "2619"]
[BlackElo "2346"]
[Result "1-0"]
[Round "01"]
[TimeControl "180+1"]
[Date "2022.08.09"]
[WhiteClock "0:01:58"]
[BlackClock "0:00:47"]

1. d4 {[%clk 0:03:00]}  Nf6 {[%clk 0:02:57]} 2. Nf3 {[%clk 0:03:00]}  d5 {[%clk 0:02:57]} 3. g3 {[%clk 0:03:01]}  g6 {[%clk 0:02:57]} 4. Bg2 {[%clk 0:03:00]}  Bg7 {[%clk 0:02:58]} 5. O-O {[%clk 0:02:59]}  O-O {[%clk 0:02:59]} 6. Nbd2 {[%clk 0:02:59]}  b6 {[%clk 0:02:59]} 7. c4 {[%clk 0:02:59]}  Bb7 {[%clk 0:02:59]} 8. cxd5 {[%clk 0:02:59]}  Bxd5 {[%clk 0:03:00]} 9. Qc2 {[%clk 0:02:57]}  Nbd7 {[%clk 0:02:59]} 10. e4 {[%clk 0:02:56]}  Bb7 {[%clk 0:03:00]} 11. Re1 {[%clk 0:02:55]}  c5 {[%clk 0:03:00]} 12. d5 {[%clk 0:02:56]}  e6 {[%clk 0:02:58]} 13. dxe6 {[%clk 0:02:55]}  fxe6 {[%clk 0:02:58]} 14. Nc4 {[%clk 0:02:52]}  Qe7 {[%clk 0:02:55]} 15. Bf4 {[%clk 0:02:52]}  e5 {[%clk 0:02:55]} 16. Nfxe5 {[%clk 0:02:51]}  Nxe5 {[%clk 0:02:54]} 17. Bxe5 {[%clk 0:02:51]}  b5 {[%clk 0:02:52]} 18. Bd6 {[%clk 0:02:51]}  Qe6 {[%clk 0:02:48]} 19. Bxf8 {[%clk 0:02:49]}  Rxf8 {[%clk 0:02:49]} 20. Na5 {[%clk 0:02:34]}  Ba8 {[%clk 0:02:45]} 21. a4 {[%clk 0:02:33]}  Ng4 {[%clk 0:02:41]} 22. Qxc5 {[%clk 0:02:15]}  Rxf2 {[%clk 0:02:36]} 23. h3 {[%clk 0:02:13]}  Rxg2+ {[%clk 0:02:30]} 24. Kxg2 {[%clk 0:02:13]}  Bxe4+ {[%clk 0:02:30]} 25. Kg1 {[%clk 0:02:13]}  Ne5 {[%clk 0:02:20]} 26. Rxe4 {[%clk 0:02:00]}  Nf3+ {[%clk 0:02:19]} 27. Kf2 {[%clk 0:01:59]}  Qxe4 {[%clk 0:02:18]} 28. Qc8+ {[%clk 0:02:00]}  Bf8 {[%clk 0:02:18]} 29. Qc6 {[%clk 0:02:00]}  Bc5+ {[%clk 0:00:47]} 30. Qxc5 {[%clk 0:01:57]}  Nd4 {[%clk 0:00:47]} 31. Qc8+ {[%clk 0:01:57]}  Kg7 {[%clk 0:00:47]} 32. Qb7+ {[%clk 0:01:58]} 1-0


[Site "https://www.chess.com"]

[Event "Titled Tuesday Blitz August 09 Late 2022"]
[White "Galperin, Platon"]
[Black "Graif, William"]
[WhiteFideId "14165414"]
[BlackFideId "2609835"]
[WhiteElo "2435"]
[BlackElo "1942"]
[Result "1-0"]
[Round "01"]
[TimeControl "180+1"]
[Date "2022.08.09"]
[WhiteClock "0:02:04"]
[BlackClock "0:00:02"]

1. b3 {[%clk 0:03:00]}  e5 {[%clk 0:02:48]} 2. Bb2 {[%clk 0:02:55]}  Nc6 {[%clk 0:02:46]} 3. Nf3 {[%clk 0:02:54]}  e4 {[%clk 0:02:44]} 4. Nd4 {[%clk 0:02:53]}  Nxd4 {[%clk 0:02:39]} 5. Bxd4 {[%clk 0:02:53]}  d5 {[%clk 0:02:36]} 6. e3 {[%clk 0:02:51]}  Nf6 {[%clk 0:02:31]} 7. c4 {[%clk 0:02:49]}  dxc4 {[%clk 0:02:02]} 8. Bxc4 {[%clk 0:02:50]}  Bd6 {[%clk 0:01:58]} 9. Nc3 {[%clk 0:02:50]}  Bf5 {[%clk 0:01:41]} 10. f3 {[%clk 0:02:50]}  O-O {[%clk 0:00:58]} 11. O-O {[%clk 0:02:43]}  Re8 {[%clk 0:00:22]} 12. fxe4 {[%clk 0:02:37]}  Bxh2+ {[%clk 0:00:16]} 13. Kxh2 {[%clk 0:02:33]}  Ng4+ {[%clk 0:00:16]} 14. Kg3 {[%clk 0:02:33]}  Qd6+ {[%clk 0:00:10]} 15. Rf4 {[%clk 0:02:31]}  g5 {[%clk 0:00:05]} 16. exf5 {[%clk 0:02:31]}  gxf4+ {[%clk 0:00:04]} 17. Kxg4 {[%clk 0:02:32]}  fxe3 {[%clk 0:00:03]} 18. Bxe3 {[%clk 0:02:27]}  Rad8 {[%clk 0:00:02]} 19. Qf3 {[%clk 0:02:21]}  Qf6 {[%clk 0:00:02]} 20. Kh3 {[%clk 0:02:20]}  Kh8 {[%clk 0:00:02]} 21. Re1 {[%clk 0:02:18]}  Rg8 {[%clk 0:00:02]} 22. g4 {[%clk 0:02:10]}  c6 {[%clk 0:00:02]} 23. Bf4 {[%clk 0:02:10]}  Rde8 {[%clk 0:00:02]} 24. Ne4 {[%clk 0:02:10]}  Qd4 {[%clk 0:00:02]} 25. Bxf7 {[%clk 0:02:04]} 1-0


[Site "https://www.chess.com"]

[Event "Titled Tuesday Blitz August 09 Late 2022"]
[White "Karimov, Alisher"]
[Black "Sjugirov, Sanan"]
[WhiteFideId "14700280"]
[BlackFideId "4189302"]
[WhiteElo "2186"]
[BlackElo "2609"]
[Result "1-0"]
[Round "01"]
[TimeControl "180+1"]
[Date "2022.08.09"]
[WhiteClock "0:01:36"]
[BlackClock "0:00:49"]

1. d4 {[%clk 0:03:00]}  Nf6 {[%clk 0:02:59]} 2. Nf3 {[%clk 0:02:59]}  e6 {[%clk 0:02:57]} 3. Bf4 {[%clk 0:02:58]}  Be7 {[%clk 0:02:56]} 4. e3 {[%clk 0:02:58]}  Nh5 {[%clk 0:02:56]} 5. Bg3 {[%clk 0:02:57]}  d6 {[%clk 0:02:51]} 6. Nbd2 {[%clk 0:02:56]}  Nd7 {[%clk 0:02:47]} 7. Bd3 {[%clk 0:02:56]}  g6 {[%clk 0:02:33]} 8. Qe2 {[%clk 0:02:41]}  O-O {[%clk 0:02:31]} 9. O-O-O {[%clk 0:02:31]}  c5 {[%clk 0:02:29]} 10. c3 {[%clk 0:02:30]}  cxd4 {[%clk 0:02:21]} 11. exd4 {[%clk 0:02:31]}  Rb8 {[%clk 0:02:14]} 12. Ne4 {[%clk 0:02:19]}  Nxg3 {[%clk 0:02:14]} 13. hxg3 {[%clk 0:02:19]}  b5 {[%clk 0:02:13]} 14. Qe3 {[%clk 0:02:03]}  f6 {[%clk 0:00:55]} 15. Rxh7 {[%clk 0:01:42]}  Kxh7 {[%clk 0:00:53]} 16. Rh1+ {[%clk 0:01:40]}  Kg7 {[%clk 0:00:50]} 17. Qh6+ {[%clk 0:01:39]}  Kf7 {[%clk 0:00:49]} 18. Nxd6+ {[%clk 0:01:36]} 1-0


[Site "https://www.chess.com"]

[Event "Titled Tuesday Blitz August 09 Late 2022"]
[White "Malka, Samuel"]
[Black "Oparin, Grigoriy"]
[WhiteFideId "20643675"]
[BlackFideId "24125890"]
[WhiteElo "2497"]
[BlackElo "2639"]
[Result "0-1"]
[Round "01"]
[TimeControl "180+1"]
[Date "2022.08.09"]
[WhiteClock "0:02:03"]
[BlackClock "0:02:44"]

1. d4 {[%clk 0:02:59]}  Nf6 {[%clk 0:02:58]} 2. c4 {[%clk 0:02:59]}  e6 {[%clk 0:02:58]} 3. Nf3 {[%clk 0:02:57]}  Bb4+ {[%clk 0:02:56]} 4. Nbd2 {[%clk 0:02:56]}  O-O {[%clk 0:02:56]} 5. a3 {[%clk 0:02:55]}  Be7 {[%clk 0:02:55]} 6. e4 {[%clk 0:02:54]}  d6 {[%clk 0:02:56]} 7. Bd3 {[%clk 0:02:47]}  e5 {[%clk 0:02:55]} 8. h3 {[%clk 0:02:36]}  exd4 {[%clk 0:02:54]} 9. Nxd4 {[%clk 0:02:36]}  Nc6 {[%clk 0:02:55]} 10. N2f3 {[%clk 0:02:32]}  Re8 {[%clk 0:02:49]} 11. O-O {[%clk 0:02:31]}  Nxd4 {[%clk 0:02:45]} 12. Nxd4 {[%clk 0:02:31]}  Nd7 {[%clk 0:02:46]} 13. b4 {[%clk 0:02:22]}  Bf6 {[%clk 0:02:46]} 14. Bb2 {[%clk 0:02:21]}  c5 {[%clk 0:02:46]} 15. e5 {[%clk 0:02:03]}  Bxe5 {[%clk 0:02:44]} 0-1


[Site "https://www.chess.com"]

[Event "Titled Tuesday Blitz August 09 Late 2022"]
[White "Mathieu, Phileas"]
[Black "Alekseenko, Kirill"]
[WhiteFideId "36048410"]
[BlackFideId "4135539"]
[WhiteElo "2138"]
[BlackElo "2682"]
[Result "0-1"]
[Round "01"]
[TimeControl "180+1"]
[Date "2022.08.09"]
[WhiteClock "0:00:03"]
[BlackClock "0:00:19"]

1. e4 {[%clk 0:03:00]}  e5 {[%clk 0:02:56]} 2. Nf3 {[%clk 0:03:00]}  Nc6 {[%clk 0:02:56]} 3. Bb5 {[%clk 0:03:00]}  a6 {[%clk 0:02:55]} 4. Ba4 {[%clk 0:03:00]}  d6 {[%clk 0:02:56]} 5. d3 {[%clk 0:02:54]}  Bd7 {[%clk 0:02:55]} 6. c3 {[%clk 0:02:52]}  g6 {[%clk 0:02:55]} 7. h3 {[%clk 0:02:51]}  Bg7 {[%clk 0:02:55]} 8. O-O {[%clk 0:02:52]}  Nge7 {[%clk 0:02:53]} 9. Be3 {[%clk 0:02:41]}  O-O {[%clk 0:02:54]} 10. Nbd2 {[%clk 0:02:41]}  f5 {[%clk 0:02:51]} 11. Bb3+ {[%clk 0:02:35]}  Kh8 {[%clk 0:02:48]} 12. Bg5 {[%clk 0:02:34]}  h6 {[%clk 0:02:45]} 13. Bh4 {[%clk 0:02:34]}  Qe8 {[%clk 0:02:40]} 14. Qe2 {[%clk 0:02:15]}  g5 {[%clk 0:02:36]} 15. Bg3 {[%clk 0:02:12]}  f4 {[%clk 0:02:36]} 16. Bh2 {[%clk 0:02:12]}  Qg6 {[%clk 0:02:35]} 17. g4 {[%clk 0:02:06]}  h5 {[%clk 0:02:22]} 18. Ne1 {[%clk 0:02:03]}  hxg4 {[%clk 0:02:18]} 19. hxg4 {[%clk 0:01:56]}  Bf6 {[%clk 0:02:10]} 20. f3 {[%clk 0:01:50]}  Kg7 {[%clk 0:02:08]} 21. Rf2 {[%clk 0:01:41]}  Rh8 {[%clk 0:02:08]} 22. Bd5 {[%clk 0:01:37]}  Rh4 {[%clk 0:02:06]} 23. b4 {[%clk 0:01:33]}  Rah8 {[%clk 0:02:05]} 24. Rg2 {[%clk 0:01:33]}  R8h6 {[%clk 0:01:54]} 25. a4 {[%clk 0:01:32]}  Nxd5 {[%clk 0:01:39]} 26. exd5 {[%clk 0:01:32]}  Ne7 {[%clk 0:01:39]} 27. c4 {[%clk 0:01:30]}  e4 {[%clk 0:01:39]} 28. Ra2 {[%clk 0:01:20]}  Bd4+ {[%clk 0:01:39]} 29. Kh1 {[%clk 0:01:17]}  e3 {[%clk 0:01:38]} 30. Ne4 {[%clk 0:01:16]}  Rh3 {[%clk 0:01:31]} 31. Kg1 {[%clk 0:01:13]}  R6h4 {[%clk 0:01:20]} 32. Nc2 {[%clk 0:01:02]}  Bf6 {[%clk 0:01:18]} 33. Ne1 {[%clk 0:01:01]}  Qh6 {[%clk 0:01:17]} 34. b5 {[%clk 0:00:50]}  a5 {[%clk 0:01:17]} 35. Rb2 {[%clk 0:00:45]}  b6 {[%clk 0:01:17]} 36. Rc2 {[%clk 0:00:36]}  Bd4 {[%clk 0:01:12]} 37. Ra2 {[%clk 0:00:33]}  Ng6 {[%clk 0:01:11]} 38. Nc2 {[%clk 0:00:29]}  Bf6 {[%clk 0:01:01]} 39. d4 {[%clk 0:00:18]}  Bxg4 {[%clk 0:00:57]} 40. Rxg4 {[%clk 0:00:18]}  Rxg4+ {[%clk 0:00:54]} 41. fxg4 {[%clk 0:00:18]}  f3 {[%clk 0:00:55]} 42. Qxe3 {[%clk 0:00:17]}  Rxh2 {[%clk 0:00:49]} 43. Qxf3 {[%clk 0:00:16]}  Nf4 {[%clk 0:00:49]} 44. Ne3 {[%clk 0:00:11]}  Rxa2 {[%clk 0:00:35]} 45. Nf5+ {[%clk 0:00:10]}  Kg6 {[%clk 0:00:35]} 46. Nxh6 {[%clk 0:00:09]}  Bxd4+ {[%clk 0:00:36]} 47. Kf1 {[%clk 0:00:06]}  Kxh6 {[%clk 0:00:36]} 48. Ke1 {[%clk 0:00:05]}  Rxa4 {[%clk 0:00:27]} 49. Ng3 {[%clk 0:00:05]}  Ra1+ {[%clk 0:00:25]} 50. Kd2 {[%clk 0:00:05]}  Ra2+ {[%clk 0:00:24]} 51. Kc1 {[%clk 0:00:05]}  Be5 {[%clk 0:00:20]} 52. Nf5+ {[%clk 0:00:05]}  Kg6 {[%clk 0:00:20]} 53. Qe4 {[%clk 0:00:04]}  Ne2+ {[%clk 0:00:19]} 54. Kb1 {[%clk 0:00:03]}  Nc3+ {[%clk 0:00:19]} 0-1


[Site "https://www.chess.com"]

[Event "Titled Tuesday Blitz August 09 Late 2022"]
[White "Naroditsky, Daniel"]
[Black "Nozdrachev, Leonid"]
[WhiteFideId "2026961"]
[BlackFideId "24113433"]
[WhiteElo "2628"]
[BlackElo "2100"]
[Result "1-0"]
[Round "01"]
[TimeControl "180+1"]
[Date "2022.08.09"]
[WhiteClock "0:00:05"]
[BlackClock "0:00:08"]

1. e4 {[%clk 0:02:57]}  c6 {[%clk 0:02:58]} 2. d4 {[%clk 0:02:49]}  d5 {[%clk 0:02:58]} 3. exd5 {[%clk 0:02:49]}  cxd5 {[%clk 0:02:57]} 4. Bd3 {[%clk 0:02:50]}  Nc6 {[%clk 0:02:55]} 5. c3 {[%clk 0:02:50]}  Nf6 {[%clk 0:02:55]} 6. Bf4 {[%clk 0:02:50]}  Bg4 {[%clk 0:02:54]} 7. Qb3 {[%clk 0:02:50]}  Qd7 {[%clk 0:02:51]} 8. Nd2 {[%clk 0:02:48]}  e6 {[%clk 0:02:51]} 9. Ngf3 {[%clk 0:02:48]}  Bxf3 {[%clk 0:02:51]} 10. Nxf3 {[%clk 0:02:48]}  Bd6 {[%clk 0:02:52]} 11. Bg3 {[%clk 0:02:44]}  O-O {[%clk 0:02:47]} 12. O-O {[%clk 0:02:38]}  Qc7 {[%clk 0:02:34]} 13. Rae1 {[%clk 0:02:30]}  Rfe8 {[%clk 0:02:24]} 14. Qc2 {[%clk 0:02:19]}  Rac8 {[%clk 0:02:13]} 15. Qb1 {[%clk 0:02:09]}  e5 {[%clk 0:02:01]} 16. Bf5 {[%clk 0:01:54]}  Rcd8 {[%clk 0:01:52]} 17. dxe5 {[%clk 0:01:55]}  Nxe5 {[%clk 0:01:52]} 18. Nd4 {[%clk 0:01:55]}  a6 {[%clk 0:01:48]} 19. Bh4 {[%clk 0:01:56]}  Ng6 {[%clk 0:01:39]} 20. Bxf6 {[%clk 0:01:52]}  Bxh2+ {[%clk 0:01:21]} 21. Kh1 {[%clk 0:01:51]}  gxf6 {[%clk 0:01:22]} 22. Qd3 {[%clk 0:00:59]}  Be5 {[%clk 0:01:14]} 23. g3 {[%clk 0:00:55]}  Qc4 {[%clk 0:01:12]} 24. Qxc4 {[%clk 0:00:40]}  dxc4 {[%clk 0:01:12]} 25. Nf3 {[%clk 0:00:41]}  b5 {[%clk 0:01:04]} 26. Rd1 {[%clk 0:00:36]}  b4 {[%clk 0:00:55]} 27. Rc1 {[%clk 0:00:18]}  bxc3 {[%clk 0:00:47]} 28. bxc3 {[%clk 0:00:19]}  Rb8 {[%clk 0:00:43]} 29. Nd2 {[%clk 0:00:18]}  Ne7 {[%clk 0:00:35]} 30. Be4 {[%clk 0:00:15]}  Rec8 {[%clk 0:00:31]} 31. Rc2 {[%clk 0:00:16]}  f5 {[%clk 0:00:27]} 32. Bg2 {[%clk 0:00:15]}  Kg7 {[%clk 0:00:27]} 33. Re1 {[%clk 0:00:15]}  Bf6 {[%clk 0:00:24]} 34. Bf1 {[%clk 0:00:14]}  Nd5 {[%clk 0:00:22]} 35. Nxc4 {[%clk 0:00:15]}  Bxc3 {[%clk 0:00:17]} 36. Rd1 {[%clk 0:00:14]}  Rd8 {[%clk 0:00:12]} 37. Rxd5 {[%clk 0:00:09]}  Rxd5 {[%clk 0:00:13]} 38. Rxc3 {[%clk 0:00:10]}  Rb1 {[%clk 0:00:13]} 39. Kg2 {[%clk 0:00:10]}  Rdd1 {[%clk 0:00:13]} 40. Ne3 {[%clk 0:00:10]}  Rdc1 {[%clk 0:00:10]} 41. Rxc1 {[%clk 0:00:08]}  Rxc1 {[%clk 0:00:11]} 42. Bxa6 {[%clk 0:00:08]}  Kf6 {[%clk 0:00:10]} 43. a4 {[%clk 0:00:07]}  Ke5 {[%clk 0:00:09]} 44. Kf3 {[%clk 0:00:05]}  Ra1 {[%clk 0:00:08]} 45. Bb5 {[%clk 0:00:05]}  h5 {[%clk 0:00:08]} 46. a5 {[%clk 0:00:04]}  f4 {[%clk 0:00:06]} 47. gxf4+ {[%clk 0:00:04]}  Kd6 {[%clk 0:00:06]} 48. a6 {[%clk 0:00:05]}  Kc5 {[%clk 0:00:05]} 49. Bf1 {[%clk 0:00:03]}  h4 {[%clk 0:00:06]} 50. Kg4 {[%clk 0:00:04]}  Rxf1 {[%clk 0:00:05]} 51. Nxf1 {[%clk 0:00:04]}  Kb6 {[%clk 0:00:05]} 52. Kxh4 {[%clk 0:00:04]}  Kxa6 {[%clk 0:00:06]} 53. Kg5 {[%clk 0:00:05]}  Kb5 {[%clk 0:00:07]} 54. Kf6 {[%clk 0:00:06]}  Kc4 {[%clk 0:00:08]} 55. Kxf7 {[%clk 0:00:05]} 1-0


[Site "https://www.chess.com"]

[Event "Titled Tuesday Blitz August 09 Late 2022"]
[White "Petrovic, Aleksa"]
[Black "Kravtsiv, Martyn"]
[WhiteFideId "967629"]
[BlackFideId "14113147"]
[WhiteElo "2262"]
[BlackElo "2694"]
[Result "0-1"]
[Round "01"]
[TimeControl "180+1"]
[Date "2022.08.09"]
[WhiteClock "0:02:26"]
[BlackClock "0:02:42"]

1. d4 {[%clk 0:02:58]}  e6 {[%clk 0:02:59]} 2. c4 {[%clk 0:02:57]}  d5 {[%clk 0:03:00]} 3. Nf3 {[%clk 0:02:57]}  Nf6 {[%clk 0:02:59]} 4. Nc3 {[%clk 0:02:57]}  Nbd7 {[%clk 0:02:59]} 5. Bg5 {[%clk 0:02:55]}  Bb4 {[%clk 0:02:58]} 6. cxd5 {[%clk 0:02:53]}  exd5 {[%clk 0:02:57]} 7. e3 {[%clk 0:02:53]}  c5 {[%clk 0:02:57]} 8. Bd3 {[%clk 0:02:50]}  Qa5 {[%clk 0:02:56]} 9. O-O {[%clk 0:02:46]}  c4 {[%clk 0:02:51]} 10. Bf5 {[%clk 0:02:44]}  Bxc3 {[%clk 0:02:50]} 11. bxc3 {[%clk 0:02:44]}  Ne4 {[%clk 0:02:50]} 12. Bxe4 {[%clk 0:02:31]}  dxe4 {[%clk 0:02:49]} 13. Ne5 {[%clk 0:02:32]}  O-O {[%clk 0:02:44]} 14. Nxc4 {[%clk 0:02:26]}  Qxg5 {[%clk 0:02:42]} 0-1


[Site "https://www.chess.com"]

[Event "Titled Tuesday Blitz August 09 Late 2022"]
[White "Rosenberg, Evan S"]
[Black "Abdrlauf, Elham"]
[WhiteFideId "2019299"]
[BlackFideId "1533533"]
[WhiteElo "2457"]
[BlackElo "2430"]
[Result "0-1"]
[Round "01"]
[TimeControl "180+1"]
[Date "2022.08.09"]
[WhiteClock "0:00:02"]
[BlackClock "0:00:52"]

1. e4 {[%clk 0:02:57]}  c6 {[%clk 0:02:55]} 2. d4 {[%clk 0:02:57]}  d5 {[%clk 0:02:56]} 3. e5 {[%clk 0:02:58]}  c5 {[%clk 0:02:56]} 4. dxc5 {[%clk 0:02:58]}  e6 {[%clk 0:02:57]} 5. Nf3 {[%clk 0:02:58]}  Bxc5 {[%clk 0:02:43]} 6. Bd3 {[%clk 0:02:57]}  Nc6 {[%clk 0:02:40]} 7. O-O {[%clk 0:02:57]}  f6 {[%clk 0:02:35]} 8. Qe2 {[%clk 0:02:44]}  fxe5 {[%clk 0:02:30]} 9. Nxe5 {[%clk 0:02:44]}  Nf6 {[%clk 0:02:30]} 10. Bg5 {[%clk 0:02:28]}  O-O {[%clk 0:02:22]} 11. c3 {[%clk 0:02:05]}  Nxe5 {[%clk 0:02:15]} 12. Qxe5 {[%clk 0:02:05]}  Bd6 {[%clk 0:02:16]} 13. Qe2 {[%clk 0:01:49]}  e5 {[%clk 0:02:15]} 14. Bc2 {[%clk 0:01:08]}  Be6 {[%clk 0:02:07]} 15. Nd2 {[%clk 0:01:01]}  Qb6 {[%clk 0:01:59]} 16. Nf3 {[%clk 0:00:56]}  Rae8 {[%clk 0:01:55]} 17. Be3 {[%clk 0:00:37]}  Qc7 {[%clk 0:01:46]} 18. Ng5 {[%clk 0:00:32]}  Bc8 {[%clk 0:01:36]} 19. h3 {[%clk 0:00:25]}  e4 {[%clk 0:01:25]} 20. Bd4 {[%clk 0:00:11]}  h6 {[%clk 0:01:23]} 21. Bb3 {[%clk 0:00:06]}  hxg5 {[%clk 0:01:21]} 22. Bxf6 {[%clk 0:00:07]}  gxf6 {[%clk 0:01:22]} 23. Bxd5+ {[%clk 0:00:07]}  Kg7 {[%clk 0:01:22]} 24. Qh5 {[%clk 0:00:06]}  Bf5 {[%clk 0:01:14]} 25. Rad1 {[%clk 0:00:05]}  Bg6 {[%clk 0:01:12]} 26. Qe2 {[%clk 0:00:05]}  Qe7 {[%clk 0:01:08]} 27. Qc4 {[%clk 0:00:04]}  Rh8 {[%clk 0:00:53]} 28. Rfe1 {[%clk 0:00:04]}  Qe5 {[%clk 0:00:54]} 29. g3 {[%clk 0:00:04]}  Rxh3 {[%clk 0:00:53]} 30. Re3 {[%clk 0:00:03]}  Reh8 {[%clk 0:00:52]} 31. Kf1 {[%clk 0:00:02]}  Rh1+ {[%clk 0:00:52]} 32. Ke2 {[%clk 0:00:02]}  Bh5+ {[%clk 0:00:52]} 33. f3 {[%clk 0:00:02]}  Bxf3+ {[%clk 0:00:52]} 34. Rxf3 {[%clk 0:00:02]}  exf3+ {[%clk 0:00:53]} 35. Kxf3 {[%clk 0:00:02]}  Rxd1 {[%clk 0:00:52]} 0-1


[Site "https://www.chess.com"]